Cogmind - Beta 13 @@@ ROGUE MODE // 2024.04.05 @ 21:43:35 Player: ebo Result: Destroyed by H-61 Shepherd with Heavy Assault Cannon Performance ------------- Evolutions (2) 1000 Regions Visited (7) 1400 Robots Destroyed (48) 240 Value Destroyed (1711) 1711 Prototype IDs (1) 20 Alien Tech Used (0) 0 Bonus (0) 0 TOTAL SCORE: 4371 Bonus ------- None Cogmind --------- Core Integrity 0/550 Matter 293/300 Energy 265/265 System Corruption 0% Temperature Cool (77) Movement Walking (400) Ox4 Location -8/Materials Parts ------- > --- POWER (1) -------- Improved Ion Engine > --- PROPULSION (2) --- Carbon-fiber Leg > --- UTILITY (6) ------ Medium Storage Unit Medium Storage Unit High-capacity Storage Unit Terrain Scan Processor > --- WEAPON (2) ------- (None) > --- INVENTORY (20) --- Light Ion Engine Light Deuterium Engine Light Nuclear Core Light Nuclear Core Light Treads Carbon-fiber Leg Improved Heat Sink Large Storage Unit Medium Matter Pod (100) Light Armor Plating Light Armor Plating Beam Rifle Particle Gun Light Assault Rifle Peak State ------------ > --- POWER ------------ Light Nuclear Core > --- PROPULSION ------- Light Treads Light Treads > --- UTILITY ---------- Improved Heat Sink Medium Storage Unit Medium Storage Unit High-capacity Storage Unit Core Shielding Trap Extractor > --- WEAPON ----------- Particle Gun Gauss Rifle > --- INVENTORY -------- Light Ion Engine Light Treads Aluminum Leg Aluminum Leg Carbon-fiber Leg Improved Heat Sink Large Storage Unit Terrain Scan Processor Light Armor Plating Light Armor Plating Beam Rifle Advanced Beam Rifle Heavy Assault Rifle [Rating: 22] Favorites ----------- Power Light Ion Engine Engine Light Ion Engine Power Core Light Nuclear Core Propulsion Light Treads Treads Light Treads Leg Aluminum Leg Wheel Compact Wheel Utility Medium Storage Unit Device Improved Heat Sink Storage Medium Storage Unit Processor Terrain Scan Processor Protection Core Shielding Weapon Light Assault Rifle Energy Gun Medium Laser Ballistic Gun Light Assault Rifle Ballistic Cannon Light Cannon Launcher Grenade Launcher Build | -11 -10 -10 -9 -9 -9 -8 -8 ------- Run | Yrd Mat Min Mat Min Exi Min Mat Slots Evolved 4 | . . . 2 . . . 2 Power . | . . . . . . . . Propulsion . | . . . . . . . . Utility 4 | . . . 2 . . . 2 Weapon . | . . . . . . . . Parts Attached 51 | 6 5 3 2 3 . 6 26 Power 10 | 1 1 1 . 1 . 1 5 Engine 6 | 1 . 1 . 1 . . 3 Core 4 | . 1 . . . . 1 2 Reactor . | . . . . . . . . Propulsion 15 | 2 . 2 . . . 2 9 Treads 6 | 2 . . . . . . 4 Leg 7 | . . . . . . 2 5 Wheel 2 | . . 2 . . . . . Hover . | . . . . . . . . Flight . | . . . . . . . . Utility 12 | 1 3 . 2 . . 1 5 Device 2 | . . . . . . 1 1 Storage 5 | 1 2 . 1 . . . 1 Processor 1 | . . . . . . . 1 Hackware . | . . . . . . . . Protection 4 | . 1 . 1 . . . 2 Artifact . | . . . . . . . . Weapon 14 | 2 1 . . 2 . 2 7 Energy Gun 4 | . . . . 1 . . 3 Energy Cannon . | . . . . . . . . Ballistic Gun 7 | 2 1 . . . . 1 3 Ballistic Cannon 1 | . . . . 1 . . . Launcher 2 | . . . . . . 1 1 Special Weapon . | . . . . . . . . Impact Weapon . | . . . . . . . . Slashing Weapon . | . . . . . . . . Piercing Weapon . | . . . . . . . . Special Melee Weapon . | . . . . . . . . Unidentified Prototypes 1 | . . . . . . . 1 Parts Lost 37 | . 4 2 . 3 . 4 24 Power 8 | . 2 . . 1 . . 5 Propulsion 9 | . . 2 . . . 1 6 Utility 7 | . 1 . . . . 1 5 Weapon 13 | . 1 . . 2 . 2 8 Highest Loss Streak 5 | . 3 2 . 3 . 2 5 To Critical Strikes 1 | . . . . . . . 1 Average Slot Usage (%) 91 | . 93 85 100 94 100 81 92 Engine 6 | . 8 11 11 8 11 1 4 Core 2 | . 1 . . . . 9 3 Treads 8 | . 28 . . . . . 6 Leg 5 | . . . . . . 7 9 Wheel 5 | . . 16 22 22 22 8 . Device 5 | . . . . . . 3 11 Storage 26 | . 18 28 33 33 33 28 27 Processor 2 | . . . . . . . 5 Protection 8 | . 7 . 11 11 11 11 8 Energy Gun 2 | . . . . 6 11 6 2 Ballistic Gun 15 | . 28 28 22 2 . 3 13 Naked Turns . | . . . . . . . . Heaviest Build 76 | 11 21 21 32 34 34 33 76 Greatest Support 40 | 40 40 32 32 32 32 23 40 Greatest Overweight (x) 21 | . . 6 . 1 1 2 21 Average Overweight (x) . | . . . . . 1 1 2 Largest Inventory Capacity 20 | 8 10 10 10 10 10 10 20 Average Capacity 14 | 7 9 10 10 10 10 10 19 Most Carried 15 | 4 10 10 10 10 10 10 15 Average Carried 8 | 2 8 8 7 8 9 8 9 Final Capacity 20 | 8 10 10 10 10 10 10 20 Final Carried 14 | 4 9 8 10 9 10 7 14 Class Distribution -------------------- 53% | Mutant 46% | Scavenger-Mutant Dominant Class ---------------- Mutant | -10/Materials Mutant | -10/Mines Mutant | -9/Materials Mutant | -9/Mines Mutant | -9/Exiles Mutant | -8/Mines Scavenger-Mutant | -8/Materials Resources | -11 -10 -10 -9 -9 -9 -8 -8 ----------- Run | Yrd Mat Min Mat Min Exi Min Mat Matter Collected 1413 | 163 287 39 32 69 . 67 756 Remotely . | . . . . . . . . Salvage Created 1894 | . 350 48 70 64 . 214 1148 Parts 95 | . 17 5 5 3 . 5 60 Haulers Intercepted . | . . . . . . . . Recyclers Shooed . | . . . . . . . . Parts Field Recycled . | . . . . . . . . Retrieved Matter . | . . . . . . . . Parts Self-Destructed . | . . . . . . . . Prevented . | . . . . . . . . Kills | -11 -10 -10 -9 -9 -9 -8 -8 ------- Run | Yrd Mat Min Mat Min Exi Min Mat Combat Hostiles Destroyed 42 | . 8 3 1 2 . 5 23 Guns 36 | . 8 3 1 . . 2 22 Cannons 3 | . . . . 2 . 1 . AOE 2 | . . . . . . 1 1 Classes Destroyed 11 | . 2 1 2 . . 1 5 Worker 2 | . 1 . . . . . 1 Builder 1 | . . . . . . . 1 Recycler 1 | . . . . . . . 1 Operator 1 | . . . 1 . . . . Watcher 1 | . . . . . . . 1 Swarmer 7 | . . 3 . . . 1 3 Grunt 27 | . 8 . . 2 . 3 14 Brawler 1 | . . . . . . . 1 Duelist 1 | . . . . . . . 1 Sentry 4 | . . . 1 . . . 3 Hunter 2 | . . . . . . 1 1 Best Kill Streak 7 | . 3 3 1 2 . 3 7 Combat Bots Only 6 | . 2 3 1 2 . 3 6 Max Kills in Single Turn 2 | . 2 1 1 1 . 1 2 Gunslinging . | . . . . . . . . Exploded 1 | . . . . . . 1 1 Melee . | . . . . . . . . Uniques/NPCs Destroyed . | . . . . . . . . Combat | -11 -10 -10 -9 -9 -9 -8 -8 -------- Run | Yrd Mat Min Mat Min Exi Min Mat Hostile Shots Fired 391 | . 79 17 2 24 . 37 232 Missed 91 | . 15 5 . 4 . 7 60 Damage Taken 4556 | . 807 103 29 265 . 518 2834 Core 771 | . 70 12 . 48 . 80 561 Absorbed by Shields . | . . . . . . . . Redirected to Shielding 50 | . . . . 9 . 18 23 Core Remaining (%) 78 | 100 . 67 . . . 68 . Volleys Fired 198 | . 40 6 3 13 . 18 118 Largest 2 | . 2 2 2 2 . 2 2 Hottest 126 | . 40 40 40 55 . 85 126 Shots Fired 346 | . 80 12 6 16 . 22 210 Gun 328 | . 80 12 6 6 . 15 209 Cannon 14 | . . . . 10 . 4 . Launcher 4 | . . . . . . 3 1 Special . | . . . . . . . . Kinetic 281 | . 80 12 6 16 . 6 161 Thermal 61 | . . . . . . 13 48 Explosive 4 | . . . . . . 3 1 Electromagnetic . | . . . . . . . . Robot Hit Streak 10 | . 8 6 4 5 . 9 10 Robot Miss Streak 3 | . 2 3 1 1 . 1 3 Penetration Max 1 | . . . . . . . 1 Secondary Targets 1 | . . . . . . . 1 Max Gunslinging Chain 1 | . . . . . . . 1 Shots Hit Robots 252 | . 57 7 4 13 . 17 154 Core Hits 108 | . 21 6 2 3 . 12 64 Critical Kills 1 | . . . 1 . . . . Critical Parts Destroyed 3 | . 1 . . . . . 2 Critical Strikes 8 | . 1 . 1 . . 2 4 Burn 4 | . . . . . . 2 2 Destroy 4 | . 1 . 1 . . . 2 Melee Attacks . | . . . . . . . . Impact . | . . . . . . . . Slashing . | . . . . . . . . Piercing . | . . . . . . . . Sneak Attacks . | . . . . . . . . Combat Hostiles . | . . . . . . . . Follow-up Attacks . | . . . . . . . . Damage Inflicted 3953 | . 617 86 38 225 . 276 2711 Guns 3498 | . 617 77 38 63 . 169 2534 Cannons 228 | . . . . 162 . 66 . Explosions 218 | . . . . . . 41 177 Melee . | . . . . . . . . Ramming 9 | . . 9 . . . . . Kinetic 2906 | . 617 77 38 225 . 85 1864 Thermal 820 | . . . . . . 150 670 Explosive 206 | . . . . . . 41 165 Electromagnetic 12 | . . . . . . . 12 Impact . | . . . . . . . . Slashing . | . . . . . . . . Piercing . | . . . . . . . . Highest Corruption . | . . . . . . . . Average Corruption . | . . . . . . . . Corruption Purged . | . . . . . . . . Corruption Blocked . | . . . . . . . . Overload Shots . | . . . . . . . . Overflow Damage 27 | . . . . . . . 27 Projectiles . | . . . . . . . . Explosions 27 | . . . . . . . 27 Melee . | . . . . . . . . Knockbacks 1 | . . . . . . 1 . Impact . | . . . . . . . . Kinetic 1 | . . . . . . 1 . Secondary . | . . . . . . . . Self-Inflicted Damage 65 | . . 4 . . . 25 36 Shots 2 | . . . . . . 1 1 Rammed 3 | . . 3 . . . . . Targets Rammed 3 | . . 3 . . . . . Kicked . | . . . . . . . . Crushed . | . . . . . . . . Highest Temperature 281 | . 96 . 4 14 . 281 77 Average Temperature 56 | . 40 . 4 7 . 153 19 Received Heat Transfer 2148 | . 498 . 27 147 . 189 1287 Siege Activations . | . . . . . . . . Robots Corrupted . | . . . . . . . . Combat Hostiles . | . . . . . . . . Parts Fried . | . . . . . . . . Impact Corruptions . | . . . . . . . . Robots Melted 1 | . . . . . . 1 . Combat Hostiles 1 | . . . . . . 1 . Parts Melted 2 | . . . . . . . 2 Heat Transferred 2146 | . . . . . . 592 1554 Parts Sabotaged . | . . . . . . . . Parts Stolen . | . . . . . . . . Parts Stripped . | . . . . . . . . Power Chain Reactions . | . . . . . . . . Alert | -11 -10 -10 -9 -9 -9 -8 -8 ------- Run | Yrd Mat Min Mat Min Exi Min Mat Peak Influence 394 | . 195 70 102 59 . 118 394 Initial 45 | . . . 27 39 . . 45 Average 153 | . 68 65 47 50 . 56 255 Maximum Alert Level 1 | . . . . . . . 1 Low Security (%) 58 | 100 100 100 100 100 . 100 15 Level 1 41 | . . . . . . . 84 Level 2 . | . . . . . . . . Level 3 . | . . . . . . . . Level 4 . | . . . . . . . . Level 5 . | . . . . . . . . High Security . | . . . . . . . . Max Security . | . . . . . . . . Squads Dispatched 8 | . 1 . 1 . . . 6 Investigation 3 | . . . 1 . . . 2 Extermination . | . . . . . . . . Reinforcement 5 | . 1 . . . . . 4 Assault . | . . . . . . . . Garrison . | . . . . . . . . Intercept . | . . . . . . . . Searches Triggered . | . . . . . . . . Construction Impeded . | . . . . . . . . Haulers Reinforced . | . . . . . . . . Active Scanning Responses . | . . . . . . . . Cargo Convoy Interrupts . | . . . . . . . . Stealth | -11 -10 -10 -9 -9 -9 -8 -8 --------- Run | Yrd Mat Min Mat Min Exi Min Mat Distress Signals 14 | . 3 . . . . . 11 Communications Jammed . | . . . . . . . . Distress Signals . | . . . . . . . . Times Spotted 82 | . 17 3 2 2 . 7 51 Peak Tracking Total 8 | . 5 3 3 2 . 3 8 Tactical Retreats 7 | . . . 1 . . 1 5 Traps | -11 -10 -10 -9 -9 -9 -8 -8 ------- Run | Yrd Mat Min Mat Min Exi Min Mat Traps Triggered . | . . . . . . . . Indirectly . | . . . . . . . . Trap Hack Attempts . | . . . . . . . . Triggered . | . . . . . . . . Disarmed . | . . . . . . . . Reprogrammed . | . . . . . . . . Reused . | . . . . . . . . Traps Extracted . | . . . . . . . . Installed . | . . . . . . . . Triggered . | . . . . . . . . Machines | -11 -10 -10 -9 -9 -9 -8 -8 ---------- Run | Yrd Mat Min Mat Min Exi Min Mat Machines Disabled 2 | . . . . . . . 2 Max in Single Turn 1 | . . . . . . . 1 Machines Repaired . | . . . . . . . . Machines Dismantled . | . . . . . . . . Machines Sabotaged . | . . . . . . . . Overloaded Fab Kills . | . . . . . . . . Hacking | -11 -10 -10 -9 -9 -9 -8 -8 --------- Run | Yrd Mat Min Mat Min Exi Min Mat Machines Accessed 6 | . . . 3 . . . 3 Terminals 5 | . . . 2 . . . 3 Fabricators . | . . . . . . . . Repair Stations . | . . . . . . . . Recycling Units 1 | . . . 1 . . . . Scanalyzers . | . . . . . . . . Garrison Access . | . . . . . . . . Total Hacks 16 | . . . 5 . . . 11 Successful 4 | . . . 2 . . . 2 Failed 12 | . . . 3 . . . 9 Catastrophic 2 | . . . . . . . 2 Database Lockouts . | . . . . . . . . Manual . | . . . . . . . . Terminals 15 | . . . 4 . . . 11 Fabricators . | . . . . . . . . Repair Stations . | . . . . . . . . Recycling Units 1 | . . . 1 . . . . Scanalyzers . | . . . . . . . . Garrison Access . | . . . . . . . . Terminal Hacks 3 | . . . 1 . . . 2 Investigation Status 1 | . . . . . . . 1 Hauler Manifests 2 | . . . 1 . . . 1 Fabricator Hacks . | . . . . . . . . Repair Station Hacks . | . . . . . . . . Recycling Unit Hacks 1 | . . . 1 . . . . Report Inventory 1 | . . . 1 . . . . Scanalyzer . | . . . . . . . . Garrison Access Hacks . | . . . . . . . . Unauthorized Hacks . | . . . . . . . . Terminals . | . . . . . . . . Fabricators . | . . . . . . . . Repair Stations . | . . . . . . . . Recycling Units . | . . . . . . . . Scanalyzers . | . . . . . . . . Garrison Access . | . . . . . . . . Data Cores Recovered 1 | . . . 1 . . . . Used . | . . . . . . . . Hacking Detections 5 | . . . 2 . . . 3 Full Trace Events 3 | . . . 1 . . . 2 Feedback Events . | . . . . . . . . Feedback Blocked . | . . . . . . . . Robot Schematics Acquired . | . . . . . . . . Robots Built . | . . . . . . . . Authchips . | . . . . . . . . Time . | . . . . . . . . Total Robot Build Rating . | . . . . . . . . Part Schematics Acquired . | . . . . . . . . Parts Built . | . . . . . . . . Authchips . | . . . . . . . . Time . | . . . . . . . . Total Part Build Rating . | . . . . . . . . Parts Repaired . | . . . . . . . . Time . | . . . . . . . . Parts Recycled . | . . . . . . . . Recycled Matter . | . . . . . . . . Retrieved Matter . | . . . . . . . . Retrieved Components . | . . . . . . . . Parts Scanalyzed . | . . . . . . . . Part Schematics Acquired . | . . . . . . . . Parts Damaged . | . . . . . . . . Bothacking | -11 -10 -10 -9 -9 -9 -8 -8 ------------ Run | Yrd Mat Min Mat Min Exi Min Mat Used RIF Installer . | . . . . . . . . Robots Hacked . | . . . . . . . . Non-combat . | . . . . . . . . Combat . | . . . . . . . . Robot Hacks Applied . | . . . . . . . . Relay Couplers Released . | . . . . . . . . Fabnet Peak Effective % . | . . . . . . . . Robots Rewired . | . . . . . . . . Allies Hacked . | . . . . . . . . Hacks Repelled . | . . . . . . . . Allies | -11 -10 -10 -9 -9 -9 -8 -8 -------- Run | Yrd Mat Min Mat Min Exi Min Mat Total Allies 3 | . . 3 . . . . . Largest Group 3 | . . 3 1 . . . . Highest-Rated Group 40 | . . 40 16 . . . . Highest-Rated Ally 16 | . . 16 16 . . . . Total Orders . | . . . . . . . . Ally Attacks 2 | . . . 2 . . . . Total Damage 13 | . . . 13 . . . . Kills . | . . . . . . . . Allies Corrupted . | . . . . . . . . Allies Melted . | . . . . . . . . Intel | -11 -10 -10 -9 -9 -9 -8 -8 ------- Run | Yrd Mat Min Mat Min Exi Min Mat Robot Analysis Total . | . . . . . . . . Derelict Logs Recovered . | . . . . . . . . Drone Launches . | . . . . . . . . Drone Recoveries . | . . . . . . . . Exploration | -11 -10 -10 -9 -9 -9 -8 -8 ------------- Run | Yrd Mat Min Mat Min Exi Min Mat Turns Passed 2409 | 87 413 155 211 102 47 228 1166 Spaces Moved 950 | 49 165 95 187 61 41 102 250 Core 23 | 6 . 13 . . . . 4 Treads 325 | 43 165 . . . . . 117 Legs 168 | . . . . . . 39 129 Wheels 434 | . . 82 187 61 41 63 . Hover . | . . . . . . . . Flight . | . . . . . . . . Fastest Speed 50 | 50 160 100 100 100 115 115 240 Average Speed 173 | 146 160 132 100 113 115 152 291 Slowest Speed 1100 | 160 160 350 100 115 115 190 1100 Overloaded Moves . | . . . . . . . . Propulsion Burnouts . | . . . . . . . . Robots Hopped . | . . . . . . . . Cave-ins Triggered . | . . . . . . . . Exploration Rate (%) 19 | 4 31 19 21 12 9 32 24 Regions Visited 7 Branch Regions 4 Pre-discovered Areas 1 | . . 1 . . . . . Known Exits Taken . | . . . . . . . . Unknown Exits Taken 7 | 1 1 1 1 1 1 1 . Scrap Searched . | . . . . . . . . Spaces Dug . | . . . . . . . . Terrain Destroyed 12 | . . . . . . 8 4 Melee . | . . . . . . . . Projectile . | . . . . . . . . AOE 12 | . . . . . . 8 4 Terrain Rammed . | . . . . . . . . Walls Destroyed . | . . . . . . . . Machines Disabled . | . . . . . . . . Actions | -11 -10 -10 -9 -9 -9 -8 -8 --------- Run | Yrd Mat Min Mat Min Exi Min Mat Total 1384 | 64 243 113 207 78 41 156 482 Wait 112 | . 19 5 8 . . 22 58 Move 943 | 48 164 94 186 60 40 101 250 Hop . | . . . . . . . . Pick Up 66 | 10 12 2 6 2 1 4 29 Fast Attach . | . . . . . . . . Attach 46 | 6 4 3 2 3 . 5 23 Detach 2 | . . . . . . 1 1 Swap 5 | . 1 . . . . 1 3 Drop 9 | . 3 . 2 . . 4 . Fire 198 | . 40 6 3 13 . 18 118 Melee . | . . . . . . . . Ram 3 | . . 3 . . . . . Kick . | . . . . . . . . Crush . | . . . . . . . . Escape Stasis . | . . . . . . . . Rewire . | . . . . . . . . Trap . | . . . . . . . . Miscellaneous . | . . . . . . . . Route ------- -11/Scrapyard -10/Materials -10/Mines -9/Materials -9/Mines -9/Exiles -8/Mines -8/Materials History --------- Turn | Location | Event 6 | -11/Scrapyard | Discovered new exit (range 16) 88 | -11/Scrapyard | Entered Materials 306 | -10/Materials | Build established: Mutant 411 | -10/Materials | Lost 3 parts (1p1u1w) 477 | -10/Materials | Discovered new exit (range 14) 501 | -10/Materials | Entered Mines 502 | -10/Mines | Learned location of Storage (-7) 565 | -10/Mines | Met a Derelict bent on vengeance 591 | -10/Mines | Assisted by bots powering up and referring to "LRC-V3" 650 | -10/Mines | Discovered new exit (range 6) 656 | -10/Mines | Entered Materials 656 | -9/Materials | Accompanied by 1 ally 656 | -9/Materials | Evolved 2 slots: Utility x2 855 | -9/Materials | Discovered new exit (range 12) 867 | -9/Materials | Entered Mines 912 | -9/Mines | Lost 3 parts (1p2w) 964 | -9/Mines | Deemed a non-threat by the Exiles lab entrance 964 | -9/Mines | Discovered new exit (range 5) 969 | -9/Mines | Entered Exiles 1003 | -9/Exiles | Discovered new exit (range 14) 1016 | -9/Exiles | Entered Mines 1215 | -8/Mines | Discovered new exit (range 14) 1244 | -8/Mines | Entered Materials 1244 | -8/Materials | Evolved 2 slots: Utility x2 1360 | -8/Materials | Lost 3 parts (1p1n1w) 1535 | -8/Materials | Build established: Scavenger-Mutant 1720 | -8/Materials | Lost 5 parts (1p2u2w) 1814 | -8/Materials | Lost 4 parts (2n1u1w) 2037 | -8/Materials | Core integrity fell below 50% 2202 | -8/Materials | Lost 4 parts (1p2n1w) 2393 | -8/Materials | Core integrity fell below 20% 2410 | -8/Materials | Destroyed by H-61 Shepherd with Heavy Assault Cannon Last Messages --------------- W-25 Informer sends out distress signal. H-61 Shepherd calls for reinforcements. ALERT: Hostile activity reported, dispatching reinforcements to area. Imp. Light Armor Plating destroyed. Critical hit (Blast). Knocked back. Acquired Carbon-fiber Leg. Knocked back. Penetrated by Slug. Critical hit (Destroy). Lgt. Assault Rifle destroyed. Penetrated by Slug. Slug penetrates Wall. Aluminum Leg destroyed. Penetrated by Slug. W-25 Informer sends out distress signal. Penetrated by Slug. Particle Gun destroyed. Hvy. Assault Rifle destroyed. Map ----- +----------------------------------------------------+ | ?????????????????????????????????????????????????? | | ?????????????????????????????????????????????????? | | ?????????????????????????????????????????????????? | | ?????????????????????????????????????????????????? | | ?????????????????????????????????????????????????? | | ?????????????????????????????????????????????????? | | ?????????????????????????????????????????????????? | | ?????????????????????????????????????????????????? | | ?????????????????????????????????????????????????? | | ?????????????????????????????????????????????????? | | ?????????????????????????????????????????????????? | | ?????????????????????????????????????????????????? | | ?????????????????????????????????????????????????? | | ?????????????????????????????????????????????????? | | ????????????????????????????##+????????########### | | ???????????????????????????# ####### | | ???????????????????????????? ! | | ????????????????????????????? ##### | | ?????????????????????????????????? # " | | ???????????????############????????????# # " | | ???????????????# """"" #????????????##% ## " | | ???????????????# """"" ! #???########### ! ## | | ???????????????# """"" #####* ! % #= ## | | ???????????????# x +%!%+ ! = + ###+## | | ???????????????# x %%####!""T"" # | | ???????????????# wgH %@#???# """"" # | | ???????????????###+###;;###???########### = | | ???????????????? ??????????????????#########+ | | ?????????????? r ??????????????????????# !% | | ???????????? ????????????????????#"""" | | ?????????? #### #####???????????????????#"""" | | ?????????###+##???? #???????????????????????#"""" | | ??????????????????? #???????????????????????#"""" | | ??????????????????? #???????????????????????#"""" | | ??????????????????? #?????????????????????????""" | | ??????????????????? #??????????????????????????"" | | ??????????????????? #??????????????????????????? | | ??????????????????? #???????????????????????????? | | ???????????????????? #???????????????????????????? | | ???????????????????? #???????????????????????????? | | ???????????????????? #???????????????????????????? | | ???????????????????? ????????????????????????????? | | ?????????????????????????????????????????????????? | | ?????????????????????????????????????????????????? | | ?????????????????????????????????????????????????? | | ?????????????????????????????????????????????????? | | ?????????????????????????????????????????????????? | | ?????????????????????????????????????????????????? | | ?????????????????????????????????????????????????? | | ?????????????????????????????????????????????????? | +----------------------------------------------------+ Best States ------------- Heat Dissipation 45 Energy Generation 14 Energy Capacity 265 Matter Stores 300 Matter Capacity 300 Sight Range 16 Terrain Scan Density 85 Armor Coverage 150 Core Shielding 20 Evasion (%) 40 Recoil Reduction 2 Trap Extractor Capacity 4 Item Schematics ----------------- None Robot Schematics ------------------ None Fabricated ------------ Nothing Alien Tech Used ----------------- None Achievements -------------- Please Form A Line Challenges ------------ None Game ------ Seed FortressHackingDeconstructor Manual? 0 Play Time 00:19:21 Cumulative 5.1 hours Start 2024.04.05 @ 21:24:23 End 2024.04.05 @ 21:43:35 Sessions 1 Manual Loads 0 Difficulty Rogue Special Mode None Game No. 11 Rogue 11 Adventurer 0 Explorer 0 Win Type - Total 0 Types 0/0/0/0/0/0/0/0/0 Lore% 4 Gallery% 12 Achievement% 11 Wizard Run 0 Options --------- Layout 1 ASCII 0 Keyboard 0 Movement Mouse Keybinds 0 Fullscreen 1 Font 24/Smallcaps Map View 50x35 Zoom Use 0% Tactical HUD 0 Map Filters NONE Filters NONE Steam 1 RUN: c096c6e2-e6f4-44ab-b5db-1d1ad4f27ff7